Workbook

Sheet YTD Budget Summary
A2: 2007 Actual versus Budget YTD
A4: Account Number | B4: Account | C4: YTD Actual | D4: YTD Budget | E4: Remaining Budget $ | F4: Remaining Budget %
A5: 1000 | B5: Office | C5: ='Monthly Expenses'!O5 -> $425.00 | D5: $50,000.00 | E5: =SUM(Budget[[#This Row],[YTD Budget]]-Budget[[#This Row],[YTD Actual]]) -> $49,575.00 | F5: =SUM(Budget[[#This Row],[Remaining Budget $]]/Budget[[#This Row],[YTD Budget]]) -> 99.15%
A6: 2000 | B6: Store | C6: ='Monthly Expenses'!O6 -> $905.27 | D6: $75,000.00 | E6: =SUM(Budget[[#This Row],[YTD Budget]]-Budget[[#This Row],[YTD Actual]]) -> $74,094.73 | F6: =SUM(Budget[[#This Row],[Remaining Budget $]]/Budget[[#This Row],[YTD Budget]]) -> 98.79%
A7: 3000 | B7: Staffing | C7: ='Monthly Expenses'!O7 -> $17,500.00 | D7: $100,000.00 | E7: =SUM(Budget[[#This Row],[YTD Budget]]-Budget[[#This Row],[YTD Actual]]) -> $82,500.00 | F7: =SUM(Budget[[#This Row],[Remaining Budget $]]/Budget[[#This Row],[YTD Budget]]) -> 82.50%
A8: 4000 | B8: Equipment | C8: ='Monthly Expenses'!O8 -> $1,854.00 | D8: $25,000.00 | E8: =SUM(Budget[[#This Row],[YTD Budget]]-Budget[[#This Row],[YTD Actual]]) -> $23,146.00 | F8: =SUM(Budget[[#This Row],[Remaining Budget $]]/Budget[[#This Row],[YTD Budget]]) -> 92.58%
A9: 5000 | B9: Other | C9: ='Monthly Expenses'!O9 -> $35.60 | D9: $50,000.00 | E9: =SUM(Budget[[#This Row],[YTD Budget]]-Budget[[#This Row],[YTD Actual]]) -> $49,964.40 | F9: =SUM(Budget[[#This Row],[Remaining Budget $]]/Budget[[#This Row],[YTD Budget]]) -> 99.93%
A10: Total | D10: =SUBTOTAL(109,[YTD Budget]) -> $300,000.00 | E10: =SUBTOTAL(109,[Remaining Budget $]) -> $279,280.13 | F10: =SUM(Budget[[#Totals],[Remaining Budget $]]/Budget[[#Totals],[YTD Budget]]) -> 93.09%

Sheet Monthly Expenses
A2: 2007 Monthly Expenses
A4: Account Number | B4: Account | C4: Jan-07 | D4: Feb-07 | E4: Mar-07 | F4: Apr-07 | G4: May-07 | H4: Jun-07 | I4: Jul-07 | J4: Aug-07 | K4: Sep-07 | L4: Oct-07 | M4: Nov-07 | N4: Dec-07 | O4: 2007 Total
A5: 1000 | B5: Office | C5: =SUMIF(Office[Constructed Key Field],"="&(TEXT(Expenses[[#Headers],[Jan-07]],"mmm-yy")),Office[Amount of Check]) -> $100.00 | D5: =SUMIF(Office[Constructed Key Field],"="&(TEXT(Expenses[[#Headers],[Feb-07]],"mmm-yy")),Office[Amount of Check]) -> $325.00 | E5: =SUMIF(Office[Constructed Key Field],"="&(TEXT(Expenses[[#Headers],[Mar-07]],"mmm-yy")),Office[Amount of Check]) -> 0 | F5: =SUMIF(Office[Constructed Key Field],"="&(TEXT(Expenses[[#Headers],[Apr-07]],"mmm-yy")),Office[Amount of Check]) -> 0 | G5: =SUMIF(Office[Constructed Key Field],"="&(TEXT(Expenses[[#Headers],[May-07]],"mmm-yy")),Office[Amount of Check]) -> 0 | H5: =SUMIF(Office[Constructed Key Field],"="&(TEXT(Expenses[[#Headers],[Jun-07]],"mmm-yy")),Office[Amount of Check]) -> 0 | I5: =SUMIF(Office[Constructed Key Field],"="&(TEXT(Expenses[[#Headers],[Jul-07]],"mmm-yy")),Office[Amount of Check]) -> 0 | J5: =SUMIF(Office[Constructed Key Field],"="&(TEXT(Expenses[[#Headers],[Aug-07]],"mmm-yy")),Office[Amount of Check]) -> 0 | K5: =SUMIF(Office[Constructed Key Field],"="&(TEXT(Expenses[[#Headers],[Sep-07]],"mmm-yy")),Office[Amount of Check]) -> 0 | L5: =SUMIF(Office[Constructed Key Field],"="&(TEXT(Expenses[[#Headers],[Oct-07]],"mmm-yy")),Office[Amount of Check]) -> 0 | M5: =SUMIF(Office[Constructed Key Field],"="&(TEXT(Expenses[[#Headers],[Nov-07]],"mmm-yy")),Office[Amount of Check]) -> 0 | N5: =SUMIF(Office[Constructed Key Field],"="&(TEXT(Expenses[[#Headers],[Dec-07]],"mmm-yy")),Office[Amount of Check]) -> 0 | O5: =SUM([Jan-07]+[Feb-07]+[Mar-07]+[Apr-07]+[May-07]+[Jun-07]+[Jul-07]+[Aug-07]+[Sep-07]+[Oct-07]+[Nov-07]+[Dec-07]) -> $425.00
A6: 2000 | B6: Store | C6: =SUMIF(Store[Constructed Key Field],"="&(TEXT(Expenses[[#Headers],[Jan-07]],"mmm-yy")),Store[Amount of Check]) -> $905.27 | D6: =SUMIF(Store[Constructed Key Field],"="&(TEXT(Expenses[[#Headers],[Feb-07]],"mmm-yy")),Store[Amount of Check]) -> 0 | E6: =SUMIF(Store[Constructed Key Field],"="&(TEXT(Expenses[[#Headers],[Mar-07]],"mmm-yy")),Store[Amount of Check]) -> 0 | F6: =SUMIF(Store[Constructed Key Field],"="&(TEXT(Expenses[[#Headers],[Apr-07]],"mmm-yy")),Store[Amount of Check]) -> 0 | G6: =SUMIF(Store[Constructed Key Field],"="&(TEXT(Expenses[[#Headers],[May-07]],"mmm-yy")),Store[Amount of Check]) -> 0 | H6: =SUMIF(Store[Constructed Key Field],"="&(TEXT(Expenses[[#Headers],[Jun-07]],"mmm-yy")),Store[Amount of Check]) -> 0 | I6: =SUMIF(Store[Constructed Key Field],"="&(TEXT(Expenses[[#Headers],[Jul-07]],"mmm-yy")),Store[Amount of Check]) -> 0 | J6: =SUMIF(Store[Constructed Key Field],"="&(TEXT(Expenses[[#Headers],[Aug-07]],"mmm-yy")),Store[Amount of Check]) -> 0 | K6: =SUMIF(Store[Constructed Key Field],"="&(TEXT(Expenses[[#Headers],[Sep-07]],"mmm-yy")),Store[Amount of Check]) -> 0 | L6: =SUMIF(Store[Constructed Key Field],"="&(TEXT(Expenses[[#Headers],[Oct-07]],"mmm-yy")),Store[Amount of Check]) -> 0 | M6: =SUMIF(Store[Constructed Key Field],"="&(TEXT(Expenses[[#Headers],[Nov-07]],"mmm-yy")),Store[Amount of Check]) -> 0 | N6: =SUMIF(Store[Constructed Key Field],"="&(TEXT(Expenses[[#Headers],[Dec-07]],"mmm-yy")),Store[Amount of Check]) -> 0 | O6: =SUM([Jan-07]+[Feb-07]+[Mar-07]+[Apr-07]+[May-07]+[Jun-07]+[Jul-07]+[Aug-07]+[Sep-07]+[Oct-07]+[Nov-07]+[Dec-07]) -> $905.27
A7: 3000 | B7: Staffing | C7: =SUMIF(Staffing[Constructed Key Field],"="&(TEXT(Expenses[[#Headers],[Jan-07]],"mmm-yy")),Staffing[Amount of Check]) -> 0 | D7: =SUMIF(Staffing[Constructed Key Field],"="&(TEXT(Expenses[[#Headers],[Feb-07]],"mmm-yy")),Staffing[Amount of Check]) -> $17,500.00 | E7: =SUMIF(Staffing[Constructed Key Field],"="&(TEXT(Expenses[[#Headers],[Mar-07]],"mmm-yy")),Staffing[Amount of Check]) -> 0 | F7: =SUMIF(Staffing[Constructed Key Field],"="&(TEXT(Expenses[[#Headers],[Apr-07]],"mmm-yy")),Staffing[Amount of Check]) -> 0 | G7: =SUMIF(Staffing[Constructed Key Field],"="&(TEXT(Expenses[[#Headers],[May-07]],"mmm-yy")),Staffing[Amount of Check]) -> 0 | H7: =SUMIF(Staffing[Constructed Key Field],"="&(TEXT(Expenses[[#Headers],[Jun-07]],"mmm-yy")),Staffing[Amount of Check]) -> 0 | I7: =SUMIF(Staffing[Constructed Key Field],"="&(TEXT(Expenses[[#Headers],[Jul-07]],"mmm-yy")),Staffing[Amount of Check]) -> 0 | J7: =SUMIF(Staffing[Constructed Key Field],"="&(TEXT(Expenses[[#Headers],[Aug-07]],"mmm-yy")),Staffing[Amount of Check]) -> 0 | K7: =SUMIF(Staffing[Constructed Key Field],"="&(TEXT(Expenses[[#Headers],[Sep-07]],"mmm-yy")),Staffing[Amount of Check]) -> 0 | L7: =SUMIF(Staffing[Constructed Key Field],"="&(TEXT(Expenses[[#Headers],[Oct-07]],"mmm-yy")),Staffing[Amount of Check]) -> 0 | M7: =SUMIF(Staffing[Constructed Key Field],"="&(TEXT(Expenses[[#Headers],[Nov-07]],"mmm-yy")),Staffing[Amount of Check]) -> 0 | N7: =SUMIF(Staffing[Constructed Key Field],"="&(TEXT(Expenses[[#Headers],[Dec-07]],"mmm-yy")),Staffing[Amount of Check]) -> 0 | O7: =SUM([Jan-07]+[Feb-07]+[Mar-07]+[Apr-07]+[May-07]+[Jun-07]+[Jul-07]+[Aug-07]+[Sep-07]+[Oct-07]+[Nov-07]+[Dec-07]) -> $17,500.00
A8: 4000 | B8: Equipment | C8: =SUMIF(Equipment[Constructed Key Field],"="&(TEXT(Expenses[[#Headers],[Jan-07]],"mmm-yy")),Equipment[Amount of Check]) -> $1,854.00 | D8: =SUMIF(Equipment[Constructed Key Field],"="&(TEXT(Expenses[[#Headers],[Feb-07]],"mmm-yy")),Equipment[Amount of Check]) -> 0 | E8: =SUMIF(Equipment[Constructed Key Field],"="&(TEXT(Expenses[[#Headers],[Mar-07]],"mmm-yy")),Equipment[Amount of Check]) -> 0 | F8: =SUMIF(Equipment[Constructed Key Field],"="&(TEXT(Expenses[[#Headers],[Apr-07]],"mmm-yy")),Equipment[Amount of Check]) -> 0 | G8: =SUMIF(Equipment[Constructed Key Field],"="&(TEXT(Expenses[[#Headers],[May-07]],"mmm-yy")),Equipment[Amount of Check]) -> 0 | H8: =SUMIF(Equipment[Constructed Key Field],"="&(TEXT(Expenses[[#Headers],[Jun-07]],"mmm-yy")),Equipment[Amount of Check]) -> 0 | I8: =SUMIF(Equipment[Constructed Key Field],"="&(TEXT(Expenses[[#Headers],[Jul-07]],"mmm-yy")),Equipment[Amount of Check]) -> 0 | J8: =SUMIF(Equipment[Constructed Key Field],"="&(TEXT(Expenses[[#Headers],[Aug-07]],"mmm-yy")),Equipment[Amount of Check]) -> 0 | K8: =SUMIF(Equipment[Constructed Key Field],"="&(TEXT(Expenses[[#Headers],[Sep-07]],"mmm-yy")),Equipment[Amount of Check]) -> 0 | L8: =SUMIF(Equipment[Constructed Key Field],"="&(TEXT(Expenses[[#Headers],[Oct-07]],"mmm-yy")),Equipment[Amount of Check]) -> 0 | M8: =SUMIF(Equipment[Constructed Key Field],"="&(TEXT(Expenses[[#Headers],[Nov-07]],"mmm-yy")),Equipment[Amount of Check]) -> 0 | N8: =SUMIF(Equipment[Constructed Key Field],"="&(TEXT(Expenses[[#Headers],[Dec-07]],"mmm-yy")),Equipment[Amount of Check]) -> 0 | O8: =SUM([Jan-07]+[Feb-07]+[Mar-07]+[Apr-07]+[May-07]+[Jun-07]+[Jul-07]+[Aug-07]+[Sep-07]+[Oct-07]+[Nov-07]+[Dec-07]) -> $1,854.00
A9: 5000 | B9: Other | C9: =SUMIF(Other[Constructed Key Field],"="&(TEXT(Expenses[[#Headers],[Jan-07]],"mmm-yy")),Other[Amount of Check]) -> $35.60 | D9: =SUMIF(Other[Constructed Key Field],"="&(TEXT(Expenses[[#Headers],[Feb-07]],"mmm-yy")),Other[Amount of Check]) -> 0 | E9: =SUMIF(Other[Constructed Key Field],"="&(TEXT(Expenses[[#Headers],[Mar-07]],"mmm-yy")),Other[Amount of Check]) -> 0 | F9: =SUMIF(Other[Constructed Key Field],"="&(TEXT(Expenses[[#Headers],[Apr-07]],"mmm-yy")),Other[Amount of Check]) -> 0 | G9: =SUMIF(Other[Constructed Key Field],"="&(TEXT(Expenses[[#Headers],[May-07]],"mmm-yy")),Other[Amount of Check]) -> 0 | H9: =SUMIF(Other[Constructed Key Field],"="&(TEXT(Expenses[[#Headers],[Jun-07]],"mmm-yy")),Other[Amount of Check]) -> 0 | I9: =SUMIF(Other[Constructed Key Field],"="&(TEXT(Expenses[[#Headers],[Jul-07]],"mmm-yy")),Other[Amount of Check]) -> 0 | J9: =SUMIF(Other[Constructed Key Field],"="&(TEXT(Expenses[[#Headers],[Aug-07]],"mmm-yy")),Other[Amount of Check]) -> 0 | K9: =SUMIF(Other[Constructed Key Field],"="&(TEXT(Expenses[[#Headers],[Sep-07]],"mmm-yy")),Other[Amount of Check]) -> 0 | L9: =SUMIF(Other[Constructed Key Field],"="&(TEXT(Expenses[[#Headers],[Oct-07]],"mmm-yy")),Other[Amount of Check]) -> 0 | M9: =SUMIF(Other[Constructed Key Field],"="&(TEXT(Expenses[[#Headers],[Nov-07]],"mmm-yy")),Other[Amount of Check]) -> 0 | N9: =SUMIF(Other[Constructed Key Field],"="&(TEXT(Expenses[[#Headers],[Dec-07]],"mmm-yy")),Other[Amount of Check]) -> 0 | O9: =SUM([Jan-07]+[Feb-07]+[Mar-07]+[Apr-07]+[May-07]+[Jun-07]+[Jul-07]+[Aug-07]+[Sep-07]+[Oct-07]+[Nov-07]+[Dec-07]) -> $35.60
A10: Total | C10: =SUBTOTAL(109,[Jan-07]) -> $2,894.87 | D10: =SUBTOTAL(109,[Feb-07]) -> $17,825.00 | E10: =SUBTOTAL(109,[Mar-07]) -> 0 | F10: =SUBTOTAL(109,[Apr-07]) -> 0 | G10: =SUBTOTAL(109,[May-07]) -> 0 | H10: =SUBTOTAL(109,[Jun-07]) -> 0 | I10: =SUBTOTAL(109,[Jul-07]) -> 0 | J10: =SUBTOTAL(109,[Aug-07]) -> 0 | K10: =SUBTOTAL(109,[Sep-07]) -> 0 | L10: =SUBTOTAL(109,[Oct-07]) -> 0 | M10: =SUBTOTAL(109,[Nov-07]) -> 0 | N10: =SUBTOTAL(109,[Dec-07]) -> 0 | O10: =SUBTOTAL(109,[2007 Total]) -> $20,719.87

Sheet 1000-Office
A1: G/L - Expense | B1: Invoice Date | C1: Invoice # | D1: Requested by | E1: Amount of Check | F1: Name of Payee | G1: Check Use | H1: Method of Distribution | I1: File Date | J1: Constructed Key Field
A2: 1000 | B2: 3909700.00% | C2: 1 | D2: David Daniels | E2: $100.00 | F2: Consolidated Messenger | G2: Blank CDs | H2: Credit | I2: 3910200.00% | J2: =TEXT([Invoice Date],"mmm-yy") -> Jan-07
A3: 1000 | B3: 2007-02-07 | C3: 5 | D3: David Daniels | E3: $50.00 | F3: Consolidated Messenger | G3: Printer ink | H3: Credit | I3: 3912300.00% | J3: =TEXT([Invoice Date],"mmm-yy") -> Feb-07
A4: 1000 | B4: 2007-02-15 | C4: 10 | D4: David Daniels | E4: $275.00 | F4: Acme | G4: General office | H4: Credit | I4: 3912300.00% | J4: =TEXT([Invoice Date],"mmm-yy") -> Feb-07
A5: 1000 | J5: =TEXT([Invoice Date],"mmm-yy") -> Jan-00
A6: Total | E6: =SUBTOTAL(109,[Amount of Check]) -> $425.00

Sheet 2000-Store
A1: G/L - Expense | B1: Invoice Date | C1: Invoice # | D1: Requested by | E1: Amount of Check | F1: Name of Payee | G1: Check Use | H1: Method of Distribution | I1: File Date | J1: Constructed Key Field
A2: 2000 | B2: 3909900.00% | C2: 2 | D2: Marc Faeber | E2: $550.00 | F2: Fabrikam, Inc. | G2: Replace store window | H2: Credit | I2: 3910200.00% | J2: =TEXT([Invoice Date],"mmm-yy") -> Jan-07
A3: 2000 | B3: 2007-01-19 | C3: 3 | D3: Marc Faeber | E3: $355.27 | F3: A. Datum Corporation | G3: New cash register | H3: Credit | I3: 3910200.00% | J3: =TEXT([Invoice Date],"mmm-yy") -> Jan-07
A4: 2000 | J4: =TEXT([Invoice Date],"mmm-yy") -> Jan-00
A5: Total | E5: =SUBTOTAL(109,[Amount of Check]) -> $905.27

Sheet 3000-Staffing
A1: G/L - Expense | B1: Invoice Date | C1: Invoice # | D1: Requested by | E1: Amount of Check | F1: Name of Payee | G1: Check Use | H1: Method of Distribution | I1: File Date | J1: Constructed Key Field
A2: 3000 | B2: 3912300.00% | C2: 6 | D2: Robert O'Hara | E2: $2,500.00 | F2: Graphic Design Institute | G2: contract designer | H2: Check | I2: 3913300.00% | J2: =TEXT([Invoice Date],"mmm-yy") -> Feb-07
A3: 3000 | B3: 2007-02-15 | C3: 11 | D3: Sandeep Kaliyath | E3: $15,000.00 | F3: Adventure Works | G3: contract writer | H3: Check | I3: 3913300.00% | J3: =TEXT([Invoice Date],"mmm-yy") -> Feb-07
A4: 3000 | J4: =TEXT([Invoice Date],"mmm-yy") -> Jan-00
A5: Total | E5: =SUBTOTAL(109,[Amount of Check]) -> $17,500.00

Sheet 4000-Equipment
A1: G/L - Expense | B1: Invoice Date | C1: Invoice # | D1: Requested by | E1: Amount of Check | F1: Name of Payee | G1: Check Use | H1: Method of Distribution | I1: File Date | J1: Constructed Key Field
A2: 4000 | B2: 3910700.00% | C2: 5 | D2: Robert Walters | E2: $1,854.00 | F2: Trey Research | G2: New laptop | H2: Credit | I2: 3910700.00% | J2: =TEXT([Invoice Date],"mmm-yy") -> Jan-07
A3: 4000 | J3: =TEXT([Invoice Date],"mmm-yy") -> Jan-00
A4: Total | E4: =SUBTOTAL(109,[Amount of Check]) -> $1,854.00

Sheet 5000-Other
A1: G/L - Expense | B1: Invoice Date | C1: Invoice # | D1: Requested by | E1: Amount of Check | F1: Name of Payee | G1: Check Use | H1: Method of Distribution | I1: File Date | J1: Constructed Key Field
A2: 5000 | B2: 3910500.00% | C2: 4 | D2: Bob Gage | E2: $35.60 | F2: Bob Gage | G2: Cab fare | H2: Check | I2: 3910500.00% | J2: =TEXT([Invoice Date],"mmm-yy") -> Jan-07
A3: 5000 | J3: =TEXT([Invoice Date],"mmm-yy") -> Jan-00
A4: Total | E4: =SUBTOTAL(109,[Amount of Check]) -> $35.60
